[Event "*** Titled Tuesday Blitz"]
[Site "Chess.com"]
[Date "2020.05.26"]
[Round "5"]
[White "Mikasinski"]
[Black "GMKrikor"]
[Result "1-0"]
[WhiteElo "2388"]
[BlackElo "2705"]
[TimeControl "180+1"]
[EndTime "10:56:37 PDT"]
[Termination "Mikasinski won by resignation"]

1. e4 {[%clk 0:03:00.9]} 1... c5 {[%clk 0:02:57.6]} 2. Nf3 {[%clk 0:03:00.4]}
2... g6 {[%clk 0:02:57.5]} 3. d4 {[%clk 0:03:00.2]} 3... cxd4 {[%clk 0:02:58.4]}
4. Nxd4 {[%clk 0:03:00.8]} 4... Nc6 {[%clk 0:02:57.6]} 5. Nc3 {[%clk 0:03:01]}
5... Bg7 {[%clk 0:02:57.3]} 6. Be3 {[%clk 0:03:01.5]} 6... Nf6 {[%clk
0:02:57.3]} 7. Bc4 {[%clk 0:03:01.5]} 7... O-O {[%clk 0:02:52.9]} 8. Bb3 {[%clk
0:03:00.8]} 8... Re8 {[%clk 0:02:51.4]} 9. O-O {[%clk 0:03:00]} 9... d6 {[%clk
0:02:46.2]} 10. h3 {[%clk 0:03:00.3]} 10... Na5 {[%clk 0:02:45]} 11. f4 {[%clk
0:03:00.1]} 11... b6 {[%clk 0:02:42.9]} 12. e5 {[%clk 0:02:58.8]} 12... dxe5
{[%clk 0:02:35.7]} 13. fxe5 {[%clk 0:02:58.1]} 13... Nxb3 {[%clk 0:02:35.8]} 14.
exf6 {[%clk 0:02:56.4]} 14... Nxd4 {[%clk 0:02:11.3]} 15. Qxd4 {[%clk
0:02:34.5]} 15... exf6 {[%clk 0:01:58.4]} 16. Qxd8 {[%clk 0:02:24.3]} 16... Rxd8
{[%clk 0:01:58]} 17. Rad1 {[%clk 0:02:22.7]} 17... Bb7 {[%clk 0:01:30.1]} 18.
Bd4 {[%clk 0:02:11.7]} 18... f5 {[%clk 0:01:22.7]} 19. Bxg7 {[%clk 0:02:10.9]}
19... Kxg7 {[%clk 0:01:23.6]} 20. Rfe1 {[%clk 0:01:58.9]} 20... Bc6 {[%clk
0:01:16.8]} 21. Kf2 {[%clk 0:01:56.8]} 21... Kf6 {[%clk 0:01:15.4]} 22. Ne2
{[%clk 0:01:43]} 22... Rxd1 {[%clk 0:01:11.7]} 23. Rxd1 {[%clk 0:01:42.5]} 23...
Ke7 {[%clk 0:01:12.3]} 24. Nd4 {[%clk 0:01:41.5]} 24... Be4 {[%clk 0:01:10.9]}
25. c3 {[%clk 0:01:37.7]} 25... Rd8 {[%clk 0:01:09.4]} 26. Re1 {[%clk
0:01:35.1]} 26... h5 {[%clk 0:01:05.2]} 27. Nc6+ {[%clk 0:01:33.8]} 27... Ke8
{[%clk 0:00:58.7]} 28. Nxd8 {[%clk 0:01:33.6]} 28... Kxd8 {[%clk 0:00:59.6]} 29.
Rd1+ {[%clk 0:01:32.5]} 29... Kc7 {[%clk 0:00:51.5]} 30. g3 {[%clk 0:01:32.5]}
30... a5 {[%clk 0:00:45.8]} 31. h4 {[%clk 0:01:30.5]} 31... Bc6 {[%clk
0:00:43.5]} 32. Ke3 {[%clk 0:01:29.4]} 32... f6 {[%clk 0:00:42.4]} 33. Rd4
{[%clk 0:01:25]} 33... Be4 {[%clk 0:00:38.8]} 34. a3 {[%clk 0:01:22.4]} 34... g5
{[%clk 0:00:34.2]} 35. Rc4+ {[%clk 0:01:06.3]} 35... Kd6 {[%clk 0:00:32.2]} 36.
Rc8 {[%clk 0:01:04.3]} 36... Bd5 {[%clk 0:00:27.2]} 37. Rh8 {[%clk 0:00:56.2]}
37... Ke5 {[%clk 0:00:15.9]} 38. hxg5 {[%clk 0:00:49.3]} 38... fxg5 {[%clk
0:00:15.1]} 39. Rxh5 {[%clk 0:00:49.3]} 39... Kf6 {[%clk 0:00:10.5]} 40. Rh6+
{[%clk 0:00:48.9]} 40... Ke5 {[%clk 0:00:11.1]} 41. Rxb6 {[%clk 0:00:48.6]}
41... f4+ {[%clk 0:00:12]} 42. gxf4+ {[%clk 0:00:48.3]} 42... gxf4+ {[%clk
0:00:12.9]} 43. Kf2 {[%clk 0:00:48.7]} 43... a4 {[%clk 0:00:13.4]} 44. Rb4
{[%clk 0:00:47.9]} 44... Bb3 {[%clk 0:00:12]} 45. Rd4 {[%clk 0:00:26]} 45... Kf5
{[%clk 0:00:07.3]} 46. Kf3 {[%clk 0:00:25.2]} 1-0

[Event "*** Titled Tuesday Blitz"]
[Site "Chess.com"]
[Date "2020.05.26"]
[Round "5"]
[White "oykuince"]
[Black "AndrewDGreen"]
[Result "0-1"]
[WhiteElo "2020"]
[BlackElo "2297"]
[TimeControl "180+1"]
[EndTime "10:56:38 PDT"]
[Termination "AndrewDGreen won by resignation"]

1. e4 {[%clk 0:03:00.9]} 1... c5 {[%clk 0:02:59.5]} 2. Nf3 {[%clk 0:02:59.9]}
2... g6 {[%clk 0:02:59.5]} 3. d4 {[%clk 0:02:59.5]} 3... cxd4 {[%clk 0:03:00.4]}
4. Qxd4 {[%clk 0:02:59.8]} 4... Nf6 {[%clk 0:03:00.2]} 5. e5 {[%clk 0:03:00.3]}
5... Nc6 {[%clk 0:03:00.8]} 6. Qa4 {[%clk 0:03:00.4]} 6... Nd5 {[%clk
0:03:01.5]} 7. Qb3 {[%clk 0:03:00.5]} 7... Nc7 {[%clk 0:03:01]} 8. Bc4 {[%clk
0:03:00.4]} 8... Ne6 {[%clk 0:02:33.6]} 9. Bxe6 {[%clk 0:02:59.8]} 9... dxe6
{[%clk 0:02:17.1]} 10. O-O {[%clk 0:02:57.8]} 10... Bg7 {[%clk 0:02:16.2]} 11.
Bf4 {[%clk 0:02:56.7]} 11... O-O {[%clk 0:02:14.1]} 12. Nc3 {[%clk 0:02:51.4]}
12... Qa5 {[%clk 0:01:42.7]} 13. Rfe1 {[%clk 0:02:48.4]} 13... Qb4 {[%clk
0:01:37.4]} 14. Ne4 {[%clk 0:02:26.9]} 14... Qxb3 {[%clk 0:01:23.2]} 15. axb3
{[%clk 0:02:25.4]} 15... b6 {[%clk 0:01:23.3]} 16. c3 {[%clk 0:02:20.9]} 16...
Bb7 {[%clk 0:01:22.2]} 17. b4 {[%clk 0:02:20]} 17... Rfd8 {[%clk 0:01:19.8]} 18.
Rad1 {[%clk 0:02:12.3]} 18... Rxd1 {[%clk 0:01:14.3]} 19. Rxd1 {[%clk 0:02:12]}
19... Nxb4 {[%clk 0:01:14.9]} 20. cxb4 {[%clk 0:01:57]} 20... Bxe4 {[%clk
0:01:13.9]} 21. Rd7 {[%clk 0:01:54.5]} 21... Kf8 {[%clk 0:00:59.7]} 22. Ng5
{[%clk 0:01:50.7]} 22... Bd5 {[%clk 0:00:49.8]} 23. Nxh7+ {[%clk 0:01:47.4]}
23... Ke8 {[%clk 0:00:49.2]} 24. Rc7 {[%clk 0:01:46.2]} 24... a5 {[%clk
0:00:42.7]} 25. b5 {[%clk 0:01:38]} 25... Kd8 {[%clk 0:00:38.1]} 26. Rc2 {[%clk
0:01:26.1]} 26... Rc8 {[%clk 0:00:38.3]} 27. Rxc8+ {[%clk 0:01:13.3]} 27... Kxc8
{[%clk 0:00:39.2]} 28. Ng5 {[%clk 0:01:10.7]} 28... f6 {[%clk 0:00:39.4]} 29.
exf6 {[%clk 0:01:05.5]} 29... exf6 {[%clk 0:00:40.3]} 30. Nf7 {[%clk 0:01:03]}
30... e5 {[%clk 0:00:35.7]} 31. Be3 {[%clk 0:00:49.6]} 31... Bxf7 {[%clk
0:00:34.3]} 32. Bxb6 {[%clk 0:00:49.8]} 32... a4 {[%clk 0:00:34.7]} 33. Ba5
{[%clk 0:00:43.5]} 33... f5 {[%clk 0:00:32.2]} 34. Bc3 {[%clk 0:00:42.4]} 34...
Kb7 {[%clk 0:00:31]} 35. f4 {[%clk 0:00:42.4]} 35... Bc4 {[%clk 0:00:26]} 36.
fxe5 {[%clk 0:00:41.1]} 36... Bxb5 {[%clk 0:00:25.9]} 37. Kf2 {[%clk 0:00:36.6]}
37... Kc6 {[%clk 0:00:26.4]} 38. Ke3 {[%clk 0:00:35.1]} 38... Kd5 {[%clk
0:00:26.5]} 39. Kf4 {[%clk 0:00:35.1]} 39... Bh6+ {[%clk 0:00:26.3]} 40. Kf3
{[%clk 0:00:33.4]} 40... Bd3 {[%clk 0:00:25.1]} 41. g4 {[%clk 0:00:32.1]} 41...
Be4+ {[%clk 0:00:24.1]} 42. Kg3 {[%clk 0:00:30.9]} 42... f4+ {[%clk 0:00:24.6]}
43. Kf2 {[%clk 0:00:31]} 43... f3 {[%clk 0:00:22.7]} 44. h4 {[%clk 0:00:29.8]}
44... Bf8 {[%clk 0:00:22.5]} 45. h5 {[%clk 0:00:26]} 45... gxh5 {[%clk
0:00:20.8]} 46. gxh5 {[%clk 0:00:26.9]} 46... Bc5+ {[%clk 0:00:21]} 47. Kf1
{[%clk 0:00:20.3]} 47... f2 {[%clk 0:00:21]} 0-1

[Event "*** Titled Tuesday Blitz"]
[Site "Chess.com"]
[Date "2020.05.26"]
[Round "5"]
[White "ChelsieMonica"]
[Black "lolo9292"]
[Result "1-0"]
[WhiteElo "2384"]
[BlackElo "2531"]
[TimeControl "180+1"]
[EndTime "10:56:39 PDT"]
[Termination "ChelsieMonica won by checkmate"]

1. c4 {[%clk 0:03:00.9]} 1... Nf6 {[%clk 0:02:58.2]} 2. Nf3 {[%clk 0:02:54.9]}
2... g6 {[%clk 0:02:59.1]} 3. e3 {[%clk 0:02:54.8]} 3... Bg7 {[%clk 0:03:00]} 4.
Be2 {[%clk 0:02:52.5]} 4... O-O {[%clk 0:03:00.9]} 5. O-O {[%clk 0:02:52.3]}
5... b6 {[%clk 0:02:41.3]} 6. Nc3 {[%clk 0:02:50.1]} 6... Bb7 {[%clk 0:02:42.2]}
7. b3 {[%clk 0:02:48.9]} 7... e6 {[%clk 0:02:43.1]} 8. Bb2 {[%clk 0:02:48.3]}
8... d6 {[%clk 0:02:44]} 9. Rc1 {[%clk 0:02:48.3]} 9... Nbd7 {[%clk 0:02:33.4]}
10. d4 {[%clk 0:02:48.3]} 10... h5 {[%clk 0:02:25.3]} 11. Qc2 {[%clk 0:02:41.1]}
11... Bh6 {[%clk 0:02:25.2]} 12. Nd2 {[%clk 0:02:34.3]} 12... Rc8 {[%clk
0:02:21.7]} 13. Bf3 {[%clk 0:02:32.8]} 13... c6 {[%clk 0:02:21.8]} 14. Ba3
{[%clk 0:02:18.9]} 14... Qc7 {[%clk 0:02:18.3]} 15. Nde4 {[%clk 0:02:16.9]}
15... Nxe4 {[%clk 0:02:16.6]} 16. Nxe4 {[%clk 0:02:16.1]} 16... c5 {[%clk
0:02:16.4]} 17. Nxd6 {[%clk 0:01:59.1]} 17... Bxf3 {[%clk 0:02:10.6]} 18. Nxc8
{[%clk 0:01:58.4]} 18... Ba8 {[%clk 0:02:04.2]} 19. Ne7+ {[%clk 0:01:57.7]}
19... Kh7 {[%clk 0:02:03.8]} 20. d5 {[%clk 0:01:44.4]} 20... Ne5 {[%clk
0:01:55.9]} 21. Nc6 {[%clk 0:01:30.5]} 21... Ng4 {[%clk 0:01:51.1]} 22. g3
{[%clk 0:01:25.8]} 22... Re8 {[%clk 0:01:41.6]} 23. Rcd1 {[%clk 0:01:17.3]}
23... exd5 {[%clk 0:01:40.1]} 24. cxd5 {[%clk 0:01:18.2]} 24... h4 {[%clk
0:01:36.6]} 25. Qc4 {[%clk 0:01:16.3]} 25... f5 {[%clk 0:01:24.6]} 26. Bc1
{[%clk 0:01:08.3]} 26... h3 {[%clk 0:01:22.4]} 27. Rfe1 {[%clk 0:01:06.9]} 27...
Re4 {[%clk 0:01:11.1]} 28. Qf1 {[%clk 0:01:06.5]} 28... Bxc6 {[%clk 0:01:09.7]}
29. dxc6 {[%clk 0:01:05.9]} 29... Ne5 {[%clk 0:01:10.3]} 30. f4 {[%clk
0:01:04.3]} 30... Nxc6 {[%clk 0:01:08.7]} 31. Qxh3 {[%clk 0:01:04.5]} 31... Kg7
{[%clk 0:01:07.5]} 32. Bb2+ {[%clk 0:01:04]} 32... Kh7 {[%clk 0:01:06.8]} 33.
Rd5 {[%clk 0:01:02.8]} 33... Nb4 {[%clk 0:00:59.1]} 34. Rxf5 {[%clk 0:01:01.2]}
34... Nd3 {[%clk 0:00:51.8]} 35. Rf8 {[%clk 0:01:00.8]} 35... Nxb2 {[%clk
0:00:47.6]} 36. f5 {[%clk 0:00:57.9]} 36... Kg7 {[%clk 0:00:41.1]} 37. f6+
{[%clk 0:00:55.1]} 37... Kxf8 {[%clk 0:00:39.3]} 38. Qxh6+ {[%clk 0:00:55]}
38... Ke8 {[%clk 0:00:34.5]} 39. Qxg6+ {[%clk 0:00:55.4]} 39... Kd8 {[%clk
0:00:34.7]} 40. Qxe4 {[%clk 0:00:55.5]} 40... Qd7 {[%clk 0:00:33.6]} 41. Qe7+
{[%clk 0:00:54.7]} 41... Qxe7 {[%clk 0:00:34.2]} 42. fxe7+ {[%clk 0:00:55.6]}
42... Kxe7 {[%clk 0:00:35.1]} 43. Re2 {[%clk 0:00:54]} 43... Nd3 {[%clk
0:00:36]} 44. Rd2 {[%clk 0:00:54]} 44... Nb4 {[%clk 0:00:35.7]} 45. h4 {[%clk
0:00:51.2]} 45... Nc6 {[%clk 0:00:35.2]} 46. Kg2 {[%clk 0:00:50.8]} 46... Ne5
{[%clk 0:00:36.1]} 47. Kh3 {[%clk 0:00:50.9]} 47... b5 {[%clk 0:00:35]} 48. h5
{[%clk 0:00:51.2]} 48... c4 {[%clk 0:00:35.2]} 49. bxc4 {[%clk 0:00:50.5]} 49...
bxc4 {[%clk 0:00:36.1]} 50. Rd4 {[%clk 0:00:50.3]} 50... c3 {[%clk 0:00:35.5]}
51. Rd5 {[%clk 0:00:47.8]} 51... Nf3 {[%clk 0:00:18.4]} 52. Rc5 {[%clk
0:00:46.9]} 52... Ng1+ {[%clk 0:00:17.3]} 53. Kg2 {[%clk 0:00:46.7]} 53... Ne2
{[%clk 0:00:18.2]} 54. h6 {[%clk 0:00:46.6]} 54... Kf7 {[%clk 0:00:17.9]} 55. g4
{[%clk 0:00:46.9]} 55... Kg6 {[%clk 0:00:18.1]} 56. g5 {[%clk 0:00:47.4]} 56...
a5 {[%clk 0:00:18]} 57. Kf3 {[%clk 0:00:47.2]} 57... Ng1+ {[%clk 0:00:16.7]} 58.
Kg4 {[%clk 0:00:46.5]} 58... Ne2 {[%clk 0:00:16.7]} 59. Rc6+ {[%clk 0:00:46.8]}
59... Kh7 {[%clk 0:00:16.5]} 60. Rc7+ {[%clk 0:00:46.4]} 60... Kg6 {[%clk
0:00:16.3]} 61. Rg7# {[%clk 0:00:46.5]} 1-0

[Event "*** Titled Tuesday Blitz"]
[Site "Chess.com"]
[Date "2020.05.26"]
[Round "5"]
[White "kuba2006"]
[Black "annamaja"]
[Result "1/2-1/2"]
[WhiteElo "2402"]
[BlackElo "2228"]
[TimeControl "180+1"]
[EndTime "10:56:39 PDT"]
[Termination "Game drawn by repetition"]

1. e4 {[%clk 0:02:14.8]} 1... c6 {[%clk 0:02:55.9]} 2. d4 {[%clk 0:02:14.2]}
2... d5 {[%clk 0:02:56.3]} 3. e5 {[%clk 0:02:14.6]} 3... Bf5 {[%clk 0:02:55]} 4.
Nf3 {[%clk 0:02:14]} 4... e6 {[%clk 0:02:55.2]} 5. a3 {[%clk 0:02:14.4]} 5...
Ne7 {[%clk 0:02:53.2]} 6. Be2 {[%clk 0:02:12.8]} 6... Nd7 {[%clk 0:02:52]} 7.
O-O {[%clk 0:02:11.7]} 7... c5 {[%clk 0:02:40.4]} 8. dxc5 {[%clk 0:02:11.1]}
8... Nc6 {[%clk 0:02:40.4]} 9. b4 {[%clk 0:02:07.1]} 9... a5 {[%clk 0:02:29]}
10. Bb2 {[%clk 0:01:47.8]} 10... axb4 {[%clk 0:02:24]} 11. axb4 {[%clk
0:01:48.7]} 11... Rxa1 {[%clk 0:02:23.9]} 12. Bxa1 {[%clk 0:01:49.3]} 12... Nxb4
{[%clk 0:02:22.8]} 13. c4 {[%clk 0:01:49.1]} 13... Bxc5 {[%clk 0:02:17.4]} 14.
Nc3 {[%clk 0:01:43.8]} 14... dxc4 {[%clk 0:02:04.9]} 15. Bxc4 {[%clk 0:01:35]}
15... O-O {[%clk 0:02:03.2]} 16. Qb3 {[%clk 0:01:26.4]} 16... Nb6 {[%clk
0:01:50.1]} 17. Na4 {[%clk 0:00:59.3]} 17... Bc2 {[%clk 0:01:42.7]} 18. Nxc5
{[%clk 0:00:46.5]} 18... Bxb3 {[%clk 0:01:41.3]} 19. Bxb3 {[%clk 0:00:47.4]}
19... Qe7 {[%clk 0:01:22]} 20. Bd4 {[%clk 0:00:41]} 20... Rd8 {[%clk 0:00:47.5]}
21. Nxe6 {[%clk 0:00:36.8]} 21... fxe6 {[%clk 0:00:28.8]} 22. Bxb6 {[%clk
0:00:37.2]} 22... Rd3 {[%clk 0:00:20.2]} 23. Bc4 {[%clk 0:00:26.1]} 23... Rc3
{[%clk 0:00:20.2]} 24. Bb5 {[%clk 0:00:21]} 24... Nd5 {[%clk 0:00:19.4]} 25. Bd4
{[%clk 0:00:20.3]} 25... Rb3 {[%clk 0:00:18.7]} 26. Bc4 {[%clk 0:00:19.5]} 26...
Rb4 {[%clk 0:00:18.5]} 27. Bxd5 {[%clk 0:00:19.5]} 27... exd5 {[%clk 0:00:19.4]}
28. Rc1 {[%clk 0:00:15.8]} 28... Rc4 {[%clk 0:00:18.5]} 29. Ra1 {[%clk
0:00:14.9]} 29... h6 {[%clk 0:00:18.8]} 30. h3 {[%clk 0:00:13.7]} 30... Qb4
{[%clk 0:00:13.3]} 31. e6 {[%clk 0:00:09]} 31... Rxd4 {[%clk 0:00:11.2]} 32.
Nxd4 {[%clk 0:00:07.3]} 32... Qxd4 {[%clk 0:00:10.4]} 33. Ra8+ {[%clk
0:00:07.2]} 33... Kh7 {[%clk 0:00:09.8]} 34. e7 {[%clk 0:00:07.7]} 34... Qd1+
{[%clk 0:00:07.3]} 35. Kh2 {[%clk 0:00:07.4]} 35... Qd2 {[%clk 0:00:07.7]} 36.
e8=Q {[%clk 0:00:07.3]} 36... Qf4+ {[%clk 0:00:08]} 37. Kg1 {[%clk 0:00:06]}
37... Qc1+ {[%clk 0:00:08.3]} 38. Kh2 {[%clk 0:00:05.8]} 38... Qf4+ {[%clk
0:00:08.9]} 39. Kh1 {[%clk 0:00:04.9]} 39... Qc1+ {[%clk 0:00:09]} 40. Kh2
{[%clk 0:00:04.6]} 40... Qf4+ {[%clk 0:00:09.7]} 1/2-1/2

[Event "*** Titled Tuesday Blitz"]
[Site "Chess.com"]
[Date "2020.05.26"]
[Round "5"]
[White "politeplayer"]
[Black "m-garcett"]
[Result "1-0"]
[WhiteElo "2170"]
[BlackElo "1977"]
[TimeControl "180+1"]
[EndTime "10:56:40 PDT"]
[Termination "politeplayer won on time"]

1. e4 {[%clk 0:03:00.9]} 1... c5 {[%clk 0:02:59.6]} 2. Nf3 {[%clk 0:03:01.4]}
2... d6 {[%clk 0:02:59.7]} 3. d4 {[%clk 0:03:01.9]} 3... cxd4 {[%clk 0:03:00.6]}
4. Nxd4 {[%clk 0:03:02.5]} 4... Nf6 {[%clk 0:03:01.2]} 5. Nc3 {[%clk 0:03:03]}
5... a6 {[%clk 0:03:01.7]} 6. Bc4 {[%clk 0:02:58.9]} 6... e6 {[%clk 0:02:55.5]}
7. a4 {[%clk 0:02:58.8]} 7... Nbd7 {[%clk 0:02:47.8]} 8. Bxe6 {[%clk 0:02:58.2]}
8... fxe6 {[%clk 0:02:45.3]} 9. Nxe6 {[%clk 0:02:58.5]} 9... Qa5 {[%clk
0:02:34.3]} 10. Bd2 {[%clk 0:02:50.9]} 10... Qb6 {[%clk 0:02:27.2]} 11. a5
{[%clk 0:02:46.3]} 11... Qc6 {[%clk 0:02:26.9]} 12. Nd5 {[%clk 0:02:40.4]} 12...
Nxd5 {[%clk 0:01:59.8]} 13. exd5 {[%clk 0:02:39.2]} 13... Qc4 {[%clk 0:01:59.6]}
14. Ra3 {[%clk 0:01:50.9]} 14... Nc5 {[%clk 0:01:49.9]} 15. Nc7+ {[%clk
0:01:44.7]} 15... Kd8 {[%clk 0:01:30.8]} 16. Nxa8 {[%clk 0:01:38.5]} 16... Qxd5
{[%clk 0:01:26.9]} 17. Nb6 {[%clk 0:01:21.5]} 17... Qxg2 {[%clk 0:01:22.9]} 18.
Qf3 {[%clk 0:01:12.9]} 18... Qg6 {[%clk 0:00:57]} 19. Nxc8 {[%clk 0:01:00.8]}
19... Kxc8 {[%clk 0:00:55.1]} 20. Kf1 {[%clk 0:00:40.3]} 20... Be7 {[%clk
0:00:48.5]} 21. Rg1 {[%clk 0:00:37.4]} 21... Qxc2 {[%clk 0:00:35]} 22. Bc3
{[%clk 0:00:30.5]} 22... Rf8 {[%clk 0:00:29.6]} 23. Qe2 {[%clk 0:00:25.1]} 23...
Qb1+ {[%clk 0:00:16.1]} 24. Kg2 {[%clk 0:00:22.7]} 24... Qg6+ {[%clk 0:00:15.2]}
25. Kf1 {[%clk 0:00:22.7]} 25... Qb1+ {[%clk 0:00:14.7]} 26. Be1 {[%clk
0:00:21.2]} 26... Ne4 {[%clk 0:00:11.5]} 27. Rxg7 {[%clk 0:00:16.9]} 27... Rxf2+
{[%clk 0:00:10.1]} 28. Qxf2 {[%clk 0:00:15.3]} 28... Nxf2 {[%clk 0:00:10.5]} 29.
Rc3+ {[%clk 0:00:14.4]} 29... Kd8 {[%clk 0:00:08.8]} 30. Rg8+ {[%clk 0:00:13.1]}
30... Kd7 {[%clk 0:00:08.5]} 31. Kxf2 {[%clk 0:00:12.8]} 31... Qxb2+ {[%clk
0:00:08.6]} 32. Kf1 {[%clk 0:00:12.1]} 32... Qb5+ {[%clk 0:00:06.8]} 33. Kg1
{[%clk 0:00:10.7]} 33... Qxa5 {[%clk 0:00:04.6]} 34. Rg2 {[%clk 0:00:09.7]}
34... Qb6+ {[%clk 0:00:03.4]} 35. Kh1 {[%clk 0:00:08.8]} 35... Qd4 {[%clk
0:00:01.9]} 36. Rcg3 {[%clk 0:00:07.2]} 1-0

[Event "*** Titled Tuesday Blitz"]
[Site "Chess.com"]
[Date "2020.05.26"]
[Round "5"]
[White "TheSodabread"]
[Black "KingChess345"]
[Result "0-1"]
[WhiteElo "1983"]
[BlackElo "2187"]
[TimeControl "180+1"]
[EndTime "10:56:43 PDT"]
[Termination "KingChess345 won by resignation"]

1. d4 {[%clk 0:02:47.9]} 1... Nf6 {[%clk 0:02:58.6]} 2. Nc3 {[%clk 0:02:32.3]}
2... e6 {[%clk 0:02:58.9]} 3. e4 {[%clk 0:02:32.2]} 3... d5 {[%clk 0:02:57.5]}
4. e5 {[%clk 0:02:32.9]} 4... Nfd7 {[%clk 0:02:57.5]} 5. Nf3 {[%clk 0:02:33.5]}
5... c5 {[%clk 0:02:56.9]} 6. Bg5 {[%clk 0:02:34.1]} 6... Qb6 {[%clk 0:02:51.2]}
7. dxc5 {[%clk 0:02:34.6]} 7... Bxc5 {[%clk 0:02:49.4]} 8. Qd2 {[%clk
0:02:35.1]} 8... Nc6 {[%clk 0:02:47.7]} 9. Bd3 {[%clk 0:02:15.4]} 9... Ndxe5
{[%clk 0:02:40]} 10. Nxe5 {[%clk 0:02:03]} 10... Nxe5 {[%clk 0:02:40.9]} 11. O-O
{[%clk 0:02:03.8]} 11... h6 {[%clk 0:02:27.8]} 12. Bh4 {[%clk 0:01:12.8]} 12...
Nxd3 {[%clk 0:02:13.2]} 13. Qxd3 {[%clk 0:01:08.5]} 13... Bd7 {[%clk 0:02:10.8]}
14. Rfe1 {[%clk 0:00:52.9]} 14... O-O {[%clk 0:02:08.7]} 15. Rab1 {[%clk
0:00:40.4]} 15... Rac8 {[%clk 0:02:01.1]} 16. Re5 {[%clk 0:00:33.4]} 16... Bd4
{[%clk 0:01:54]} 17. Ree1 {[%clk 0:00:33.1]} 17... Rc4 {[%clk 0:01:45.2]} 18.
Qg3 {[%clk 0:00:25.6]} 18... Qc7 {[%clk 0:01:22.2]} 19. Ne2 {[%clk 0:00:15.8]}
19... Qxg3 {[%clk 0:01:17.4]} 20. Bxg3 {[%clk 0:00:15.7]} 20... Bf6 {[%clk
0:01:16.2]} 21. c3 {[%clk 0:00:16]} 21... Rfc8 {[%clk 0:01:14.7]} 22. Rbd1
{[%clk 0:00:12.5]} 22... Bb5 {[%clk 0:01:10.8]} 23. Nf4 {[%clk 0:00:11.3]} 23...
g6 {[%clk 0:00:49.3]} 24. Nd3 {[%clk 0:00:07.7]} 24... Kg7 {[%clk 0:00:49.1]}
25. Nb4 {[%clk 0:00:07.6]} 25... a5 {[%clk 0:00:47.8]} 26. Nd3 {[%clk
0:00:07.7]} 26... Ra4 {[%clk 0:00:43.5]} 27. a3 {[%clk 0:00:07.2]} 27... Bxd3
{[%clk 0:00:42.4]} 28. Rxd3 {[%clk 0:00:08.1]} 28... Rc6 {[%clk 0:00:42.6]} 29.
Be5 {[%clk 0:00:08.2]} 29... Rb6 {[%clk 0:00:40.5]} 30. Bxf6+ {[%clk 0:00:07.6]}
30... Kxf6 {[%clk 0:00:40.4]} 31. Re2 {[%clk 0:00:08.5]} 31... Rc4 {[%clk
0:00:39.9]} 32. Rf3+ {[%clk 0:00:08.2]} 32... Ke7 {[%clk 0:00:39.1]} 33. g3
{[%clk 0:00:09.1]} 33... h5 {[%clk 0:00:38.6]} 34. Rd3 {[%clk 0:00:09.5]} 34...
a4 {[%clk 0:00:36.6]} 35. Rxd5 {[%clk 0:00:09.3]} 35... Rxb2 {[%clk 0:00:31.6]}
36. Rxb2 {[%clk 0:00:10.2]} 36... exd5 {[%clk 0:00:31.3]} 37. Rxb7+ {[%clk
0:00:09.3]} 37... Ke6 {[%clk 0:00:31.3]} 38. Rb6+ {[%clk 0:00:05.6]} 38... Ke5
{[%clk 0:00:31.4]} 39. Rb7 {[%clk 0:00:04.4]} 39... Rxc3 {[%clk 0:00:31.7]} 40.
Rxf7 {[%clk 0:00:04.4]} 40... Rxa3 {[%clk 0:00:31.3]} 41. Re7+ {[%clk 0:00:04]}
41... Kf6 {[%clk 0:00:28.8]} 42. Rd7 {[%clk 0:00:04.3]} 42... Ke6 {[%clk
0:00:29]} 43. Rg7 {[%clk 0:00:04]} 43... Kf6 {[%clk 0:00:26]} 44. Rd7 {[%clk
0:00:04.1]} 44... Ke5 {[%clk 0:00:26.4]} 45. Rg7 {[%clk 0:00:04.8]} 45... d4
{[%clk 0:00:25.3]} 46. Rxg6 {[%clk 0:00:05]} 46... d3 {[%clk 0:00:25.2]} 47.
Rg5+ {[%clk 0:00:05.4]} 47... Kd4 {[%clk 0:00:24.9]} 48. Rxh5 {[%clk 0:00:05.4]}
48... d2 {[%clk 0:00:24.6]} 49. Rh4+ {[%clk 0:00:05.9]} 49... Kd3 {[%clk
0:00:24.1]} 0-1